bitfinex-derivatives/quotes_BTCF0:USTF0_20260113
["timestamp","ask_amount","ask_price","bid_price","bid_amount"]
[1768347308345,0.01049,95354.0,95339.0,0.09860928]
[1768347308740,0.01049,95358.0,95339.0,0.09860928]
[1768347309543,0.09659945,95362.0,95340.0,0.09860928]
[1768347309746,0.104969,95364.0,95341.0,0.09381273]
[1768347309935,0.104969,95364.0,95342.0,0.09860928]
[1768347310135,0.010489,95362.0,95344.0,0.09860928]
[1768347310437,0.09448,95364.0,95344.0,0.09381273]
[1768347310642,0.09448,95364.0,95345.0,0.09860928]
[1768347311347,0.010489,95361.0,95345.0,0.09860928]
[1768347311850,0.09448,95364.0,95347.0,0.19242201]
[1768347312058,0.09659945,95363.0,95340.0,0.09860928]
[1768347312751,0.09659945,95362.0,95340.0,0.09860928]
[1768347313150,0.09448,95364.0,95342.0,0.09381273]
[1768347313350,0.09448,95364.0,95343.0,0.09860928]
[1768347313545,0.09448,95364.0,95344.0,0.09381273]
[1768347313751,0.09448,95365.0,95349.0,0.09860928]
[1768347313949,0.010489,95372.0,95351.0,0.09860928]
[1768347314148,0.09448,95371.0,95352.0,0.09381273]
[1768347314346,0.09448,95371.0,95353.0,0.09860928]
[1768347315155,0.09448,95371.0,95337.0,0.09448]
[1768347315156,0.09659945,95370.0,95347.0,0.09860928]
[1768347316155,0.09659945,95362.0,95340.0,0.09860928]
[1768347316351,0.09659945,95359.0,95337.0,0.09448]
[1768347316550,0.09659945,95359.0,95338.0,0.09860928]
[1768347316746,0.09659945,95359.0,95339.0,0.09860928]
[1768347316946,0.010489,95369.0,95295.0,0.09593646]
[1768347316947,0.010491,95350.0,95336.0,0.09448]
[1768347317147,0.09659945,95355.0,95336.0,0.09448]
[1768347317353,0.010492,95348.0,95336.0,0.09448]
[1768347317949,0.010491,95354.0,95336.0,0.09448]
[1768347318454,0.0997238,95351.0,95336.0,0.09448]
[1768347318656,0.1102158,95346.0,95327.0,0.09448]
[1768347318857,0.0997238,95346.0,95327.0,0.09448]
[1768347319052,0.0997238,95346.0,95327.0,0.1868208]
[1768347319644,0.0997238,95346.0,95287.0,0.08472943]
[1768347319645,0.0997238,95344.0,95309.0,0.09607874]
[1768347319850,0.010494,95324.0,95307.0,0.0923408]
[1768347320145,0.010494,95328.0,95307.0,0.0923408]
[1768347320453,0.010494,95327.0,95307.0,0.0923408]
[1768347321957,0.02418127,95327.0,95307.0,0.0923408]
[1768347322958,0.11341107,95327.0,95306.0,0.09448]
[1768347323545,0.010494,95325.0,95306.0,0.09448]
[1768347323745,0.11341107,95327.0,95306.0,0.1868208]
[1768347323948,0.010494,95326.0,95306.0,0.1868208]
[1768347324646,0.1081663,95327.0,95306.0,0.1868208]
[1768347325474,0.0084425,95327.0,95310.0,0.0923408]
[1768347325661,0.010494,95330.0,95310.0,0.0923408]
[1768347326263,0.010494,95327.0,95307.0,0.09607874]
[1768347326468,0.11259954,95330.0,95308.0,0.0923408]
[1768347326654,0.010494,95329.0,95308.0,0.0923408]
[1768347327559,0.11259954,95330.0,95308.0,0.0923408]
[1768347327560,0.010494,95327.0,95308.0,0.0923408]
[1768347328161,0.010494,95325.0,95308.0,0.0923408]
[1768347328466,0.1102178,95328.0,95308.0,0.0923408]
[1768347331157,0.1102178,95328.0,95306.0,0.09448]
[1768347331158,0.0997238,95324.0,95306.0,0.09448]
[1768347333064,0.0997238,95324.0,95306.0,0.1868208]
[1768347333572,0.0997238,95319.0,95297.0,0.09607874]
[1768347333760,0.0997238,95319.0,95298.0,0.0923408]
[1768347334162,0.1718987,95320.0,95300.0,0.0923408]
[1768347334471,0.19527068,95323.0,95301.0,0.0923408]
[1768347334769,0.1718987,95320.0,95301.0,0.0923408]
[1768347334971,0.1718987,95320.0,95301.0,0.18714285]
[1768347335271,0.1718987,95320.0,95302.0,0.09945315]
[1768347335471,0.0997238,95323.0,95302.0,0.09945315]
[1768347335771,0.09953632,95327.0,95300.0,0.1718987]
[1768347335962,0.1718987,95320.0,95300.0,0.1718987]
[1768347336159,0.09953632,95318.0,95300.0,0.1718987]
[1768347336764,0.19285308,95318.0,95295.0,0.00230863]
[1768347336967,0.09953632,95317.0,95295.0,0.10176178]
[1768347337169,0.1718987,95320.0,95296.0,0.09945315]
[1768347337366,0.09953632,95322.0,95300.0,0.27135185]
[1768347337567,0.1718987,95320.0,95300.0,0.27135185]
[1768347337769,0.1718987,95320.0,95301.0,0.09945315]
[1768347338469,0.010495,95321.0,95301.0,0.09945315]
[1768347338671,0.1718987,95320.0,95301.0,0.09945315]
[1768347339971,0.09953632,95322.0,95301.0,0.09945315]
[1768347340168,0.09953632,95328.0,95304.0,0.09945315]
[1768347340372,0.09953632,95328.0,95306.0,0.09945315]
[1768347340676,0.010494,95327.0,95310.0,0.1718987]
[1768347340878,0.11003032,95327.0,95310.0,0.1718987]
[1768347341274,0.11003032,95327.0,95306.0,0.09945315]
[1768347341473,0.09953632,95327.0,95306.0,0.09945315]
[1768347341672,0.11003032,95326.0,95306.0,0.09945315]
[1768347342073,0.09953632,95326.0,95306.0,0.09945315]
[1768347343179,0.09953632,95325.0,95306.0,0.09945315]
[1768347343377,0.010495,95321.0,95306.0,0.09945315]
[1768347343580,0.010494,95324.0,95306.0,0.09945315]
[1768347343776,0.010495,95322.0,95307.0,0.09945315]
[1768347343982,0.1718987,95320.0,95303.0,0.09945315]
[1768347344981,0.010494,95323.0,95304.0,0.09945315]
[1768347345181,0.010494,95323.0,95306.0,0.09945315]
[1768347345382,0.09331676,95325.0,95305.0,0.09448]
[1768347345583,0.19285308,95325.0,95305.0,0.09448]
[1768347345884,0.09953632,95325.0,95306.0,0.09945315]
[1768347346383,0.010494,95324.0,95306.0,0.09945315]
[1768347346582,0.11003032,95324.0,95305.0,0.09448]
[1768347346780,0.11003032,95324.0,95305.0,0.19393315]
[1768347347478,0.11003032,95324.0,95306.0,0.09945315]
[1768347349379,0.09953632,95350.0,95326.0,0.09480205]
[1768347349568,0.010493,95340.0,95327.0,0.09452]
[1768347349768,0.09953632,95337.0,95313.0,0.99677315]
[1768347349979,0.010494,95326.0,95314.0,0.09452]
[1768347350183,0.11003032,95324.0,95309.0,0.09452]
[1768347350366,0.010494,95322.0,95309.0,0.09452]
[1768347350572,0.09953632,95324.0,95309.0,0.09452]
[1768347350777,0.010494,95323.0,95309.0,0.09452]
[1768347351075,0.010494,95323.0,95310.0,0.1718987]
[1768347351280,0.010494,95326.0,95310.0,0.1718987]
[1768347351472,0.09953632,95329.0,95310.0,0.1718987]
[1768347351878,0.010494,95323.0,95309.0,0.09452]
[1768347352480,0.1718987,95320.0,95307.0,0.09448]
[1768347352674,0.010495,95320.0,95307.0,0.09448]
[1768347355288,0.010495,95321.0,95304.0,0.09945315]
[1768347355471,0.1718987,95320.0,95304.0,0.09945315]
[1768347358181,0.1718987,95320.0,95301.0,0.09945315]
[1768347359983,0.27143502,95320.0,95302.0,0.09452]
[1768347360187,0.09953632,95319.0,95302.0,0.09452]
[1768347360982,0.09953632,95319.0,95300.0,0.09945315]
[1768347361188,0.09953632,95306.0,95299.0,0.09452]
[1768347361377,0.09953632,95306.0,95295.0,0.00230863]
[1768347361577,0.010496,95304.0,95296.0,0.09452]
[1768347362189,0.010496,95304.0,95295.0,0.00230863]
[1768347362382,0.09953632,95299.0,95290.0,0.09452]
[1768347362582,0.010496,95306.0,95289.0,0.19397315]
[1768347362793,0.09953632,95309.0,95289.0,0.19397315]
[1768347362986,0.09953632,95309.0,95290.0,0.09945315]
[1768347363186,0.010496,95310.0,95290.0,0.09945315]
[1768347363380,0.19285308,95327.0,95302.0,0.09945315]
[1768347363589,0.1823937,95320.0,95305.0,0.09945315]
[1768347363784,0.010495,95317.0,95300.0,0.19397315]
[1768347363988,0.010495,95317.0,95301.0,0.09945315]
[1768347364388,0.010495,95314.0,95301.0,0.09945315]
[1768347364586,0.010495,95314.0,95300.0,0.09452]
[1768347364887,0.1718987,95310.0,95281.0,0.18754919]
[1768347365080,0.19670009,95317.0,95280.0,0.1718987]
[1768347365081,0.19670009,95317.0,95289.0,0.09402754]
[1768347365284,0.010495,95318.0,95298.0,0.18754919]
[1768347365488,0.010495,95318.0,95300.0,0.26592624]
[1768347365796,0.010495,95321.0,95302.0,0.18754919]
[1768347365983,0.010495,95319.0,95303.0,0.09402754]
[1768347366186,0.09669546,95306.0,95264.0,0.09362783]
[1768347366386,0.09669546,95304.0,95282.0,0.09402754]
[1768347366695,0.010496,95308.0,95286.0,0.09402754]
[1768347366988,0.09452,95315.0,95291.0,0.09402754]
[1768347367192,0.09452,95315.0,95295.0,0.09402754]
[1768347367388,0.20171046,95315.0,95295.0,0.09402754]
[1768347367591,0.1718987,95310.0,95295.0,0.09402754]
[1768347367890,0.1718987,95310.0,95291.0,0.09402754]
[1768347368194,0.010496,95312.0,95291.0,0.09402754]
[1768347368394,0.09669546,95315.0,95292.0,0.09402754]
[1768347368696,0.09669546,95315.0,95293.0,0.09402754]
[1768347368990,0.09669546,95315.0,95290.0,0.1718987]
[1768347368991,0.010495,95314.0,95295.0,0.09402754]
[1768347369190,0.26859416,95310.0,95289.0,0.09402754]
[1768347369386,0.010496,95309.0,95290.0,0.1718987]
[1768347369583,0.010496,95309.0,95291.0,0.09402754]
[1768347369998,0.26859416,95310.0,95291.0,0.09402754]
[1768347370290,0.1718987,95301.0,95287.0,0.09452]
[1768347370499,0.09669546,95306.0,95282.0,0.09402754]
[1768347370686,0.09669546,95306.0,95288.0,0.09452]
[1768347370994,0.1718987,95300.0,95288.0,0.09452]
[1768347371192,0.09669546,95306.0,95288.0,0.09452]
[1768347371386,0.09669546,95306.0,95278.0,0.89752]
[1768347371387,0.19385923,95297.0,95273.0,8.8e-07]
[1768347371583,0.10719546,95275.0,95253.0,0.00524918]
[1768347371783,0.09669546,95275.0,95253.0,0.00524918]
[1768347372695,0.00010888,95274.0,95260.0,0.1718987]
[1768347373278,0.00010888,95274.0,95258.0,0.09402754]
[1768347373482,0.00010888,95274.0,95260.0,0.26592624]
[1768347373684,0.010498,95288.0,95262.0,0.17940033]
[1768347373889,0.09669546,95291.0,95260.0,0.1718987]
[1768347373890,0.09669546,95289.0,95266.0,0.08604464]
[1768347374087,0.010497,95303.0,95279.0,0.3437974]
[1768347374291,0.104936,95305.0,95290.0,0.1718987]
[1768347374495,0.104936,95305.0,95291.0,0.09452]
[1768347374894,0.11836766,95305.0,95291.0,0.09452]
[1768347375682,0.010496,95304.0,95291.0,0.09452]
[1768347376081,0.09669546,95299.0,95267.0,0.09063491]
[1768347376288,0.09669546,95289.0,95268.0,0.09452]
[1768347376482,0.09669546,95279.0,95269.0,0.09452]
[1768347376698,0.09669546,95277.0,95268.0,0.09452]
[1768347376898,0.09589636,95276.0,95265.0,0.09452]
[1768347377093,0.19194188,95276.0,95264.0,0.09452]
[1768347377397,0.09589636,95275.0,95264.0,0.09452]
[1768347377799,0.09589636,95284.0,95264.0,0.09452]
[1768347379692,0.09589636,95283.0,95264.0,0.09452]
[1768347379895,0.09589636,95281.0,95256.0,0.09452]
[1768347380095,0.09589636,95281.0,95258.0,0.09249378]
[1768347380296,0.09589636,95281.0,95259.0,0.09296266]
[1768347380697,0.09589636,95280.0,95256.0,0.09452]
[1768347380900,0.09589636,95280.0,95257.0,0.09296266]
[1768347381094,0.010498,95291.0,95263.0,0.09249378]
[1768347381403,0.09589636,95294.0,95264.0,0.09296266]
[1768347381593,0.09589636,95294.0,95266.0,0.09296266]
[1768347381793,0.010497,95295.0,95275.0,0.09296266]
[1768347382100,0.010497,95295.0,95270.0,0.25810545]
[1768347382101,0.10639336,95295.0,95276.0,0.09452]
[1768347382299,0.09589636,95292.0,95276.0,0.09452]
[1768347382697,0.09589636,95290.0,95276.0,0.09452]
[1768347383201,0.09589636,95290.0,95265.0,0.18545644]
[1768347383202,0.19194188,95289.0,95260.0,0.25810545]
[1768347383506,0.09589636,95288.0,95261.0,0.99224]
[1768347383700,0.10639436,95287.0,95261.0,0.99224]
[1768347384009,0.09589636,95284.0,95262.0,0.99224]
[1768347384207,0.09589636,95282.0,95263.0,0.09452]
[1768347385603,0.09589636,95282.0,95262.0,0.89772]
[1768347385604,0.09589636,95282.0,95264.0,0.99228]
[1768347386106,0.09589636,95291.0,95264.0,0.99228]
[1768347386310,0.09589636,95289.0,95265.0,0.09296266]
[1768347386511,0.00524698,95293.0,95271.0,0.09296266]
[1768347386805,0.09589636,95281.0,95269.0,0.09452]
[1768347387605,0.09589636,95288.0,95269.0,0.09452]
[1768347387805,0.00524698,95293.0,95279.0,0.09296266]
[1768347388025,0.010498,95294.0,95280.0,0.09452]
[1768347388210,0.010497,95300.0,95280.0,0.09452]
[1768347388401,0.09604552,95301.0,95280.0,0.09452]
[1768347388706,0.09589636,95291.0,95281.0,0.09452]
[1768347388909,0.09589636,95291.0,95282.0,0.09452]
[1768347389115,0.09589636,95291.0,95283.0,0.09452]
[1768347389704,0.010498,95288.0,95266.0,0.09296266]
[1768347389897,0.09589636,95288.0,95267.0,0.38212]
[1768347390700,0.10639436,95288.0,95267.0,0.38212]
[1768347391009,0.10639436,95288.0,95261.0,0.09249378]
[1768347391212,0.10639436,95288.0,95263.0,0.09296266]
[1768347391412,0.010499,95284.0,95263.0,0.09296266]
[1768347391716,0.10639536,95284.0,95257.0,0.09296266]
[1768347392015,0.010498,95287.0,95261.0,0.09249378]
[1768347392207,0.010498,95287.0,95262.0,0.18545644]
[1768347392403,0.010498,95287.0,95263.0,0.09296266]
[1768347392814,0.09589636,95289.0,95263.0,0.09296266]
[1768347393019,0.09589636,95289.0,95264.0,0.09296266]
[1768347393214,0.09589636,95289.0,95265.0,0.09249378]
[1768347393514,0.09589636,95289.0,95266.0,0.09296266]
[1768347393917,0.010498,95293.0,95268.0,0.09296266]
[1768347394115,0.010498,95293.0,95270.0,0.18545644]
[1768347394817,0.010498,95293.0,95271.0,0.09296266]
[1768347395610,0.09589636,95299.0,95274.0,0.09385686]
[1768347395809,0.05035247,95308.0,95278.0,0.09385686]
[1768347396014,0.010497,95303.0,95284.0,0.09385686]
[1768347396219,0.09220995,95312.0,95283.0,0.09291829]
[1768347396220,0.010496,95306.0,95285.0,0.18837686]
[1768347396412,0.010496,95309.0,95289.0,0.18677515]
[1768347396619,0.00524587,95313.0,95292.0,0.09385686]
[1768347396914,0.1848116,95316.0,95287.0,0.09385686]
[1768347397115,0.010496,95305.0,95288.0,0.27944]
[1768347397622,0.010496,95312.0,95289.0,0.9924]
[1768347397921,0.010496,95312.0,95290.0,0.18677515]
[1768347398108,0.010496,95312.0,95291.0,0.09385686]
[1768347399117,0.09220995,95313.0,95291.0,0.09385686]
[1768347399507,0.010495,95318.0,95291.0,0.18677515]
[1768347399817,0.01387216,95319.0,95293.0,0.09385686]
[1768347399818,0.010495,95316.0,95293.0,0.09385686]
[1768347400011,0.010495,95319.0,95293.0,0.09385686]
[1768347400713,0.010495,95319.0,95293.0,0.18677515]
[1768347400922,0.09220995,95320.0,95296.0,0.09291829]
[1768347401218,0.09220995,95320.0,95297.0,0.09385686]
[1768347401610,0.010495,95319.0,95297.0,0.09385686]
[1768347401805,0.09220995,95315.0,95289.0,1.08625686]
[1768347402117,0.09220995,95315.0,95290.0,0.09385686]
[1768347403004,0.09220995,95315.0,95291.0,0.09385686]
[1768347403514,0.010496,95312.0,95291.0,0.09385686]
[1768347403719,0.010496,95311.0,95292.0,0.99236]
[1768347404216,0.010495,95314.0,95292.0,1.08621686]
[1768347404416,0.010495,95316.0,95296.0,0.09385686]
[1768347405319,0.09220995,95320.0,95296.0,0.09385686]
[1768347405514,0.010495,95316.0,95297.0,0.99236]
[1768347406423,0.09220995,95316.0,95297.0,0.99236]
[1768347406617,0.010495,95315.0,95297.0,1.08621686]
[1768347406924,0.010495,95318.0,95298.0,0.09385686]
[1768347407112,0.010495,95319.0,95299.0,0.09385686]
[1768347407423,0.010495,95320.0,95301.0,0.09385686]
[1768347408221,0.01280191,95325.0,95305.0,0.09385686]
[1768347408520,0.010495,95321.0,95307.0,0.09385686]
[1768347408721,0.010495,95321.0,95308.0,0.09452]
[1768347409121,0.00230791,95325.0,95308.0,0.09452]
[1768347409323,0.01579003,95325.0,95308.0,0.09452]
[1768347410517,0.09220995,95316.0,95291.0,0.09385686]
[1768347410717,0.09220995,95316.0,95292.0,1.08617686]
[1768347411021,0.09220995,95322.0,95295.0,0.09385686]
[1768347411323,0.09220995,95322.0,95296.0,0.09385686]
[1768347411922,0.09220995,95322.0,95297.0,0.09385686]
[1768347413016,0.09220995,95322.0,95298.0,0.09385686]
[1768347413215,0.09220995,95322.0,95299.0,0.09385686]
[1768347414812,0.09220995,95321.0,95299.0,0.09385686]
[1768347415013,0.09220995,95321.0,95300.0,0.41096]
[1768347415420,0.09220995,95319.0,95300.0,0.41096]
[1768347415930,0.010495,95318.0,95300.0,0.8978]
[1768347416124,0.010495,95318.0,95301.0,0.09452]
[1768347416523,0.10270495,95318.0,95301.0,0.09452]
[1768347416924,0.09220995,95318.0,95301.0,0.09452]
[1768347418427,0.09220995,95314.0,95302.0,0.09452]
[1768347419832,0.09220995,95323.0,95302.0,0.09452]
[1768347420134,0.09220995,95317.0,95302.0,0.09452]
[1768347420621,0.09220995,95317.0,95293.0,0.19202213]
[1768347420820,0.010496,95311.0,95293.0,0.00524698]
[1768347421131,0.09220995,95309.0,95294.0,0.41012]
[1768347421328,0.1848116,95316.0,95294.0,0.41012]
[1768347421530,0.09220995,95316.0,95295.0,0.09385686]
[1768347422223,0.09167945,95316.0,95295.0,0.09385686]
[1768347422424,0.09260165,95312.0,95294.0,0.41012]
[1768347422626,0.09260165,95306.0,95293.0,0.09452]
[1768347422823,0.09260165,95301.0,95274.0,0.09385686]
[1768347423134,0.09260165,95299.0,95275.0,0.378]
[1768347423330,0.00230791,95325.0,95285.0,0.18677515]
[1768347423534,0.00524367,95353.0,95316.0,0.18677515]
[1768347423535,0.010492,95343.0,95316.0,0.18677515]
[1768347423729,0.09260165,95348.0,95319.0,0.18677515]
[1768347424032,0.09260165,95337.0,95320.0,0.99228]
[1768347424331,0.00524367,95353.0,95308.0,0.09385686]
[1768347424332,0.09220995,95334.0,95308.0,0.09385686]
[1768347424530,0.09260165,95324.0,95290.0,0.09291829]
[1768347424735,0.09220995,95323.0,95291.0,0.46416]
[1768347424933,0.09690441,95320.0,95293.0,0.09596277]
[1768347425134,0.09690441,95326.0,95296.0,0.0949355]
[1768347425334,0.09690441,95324.0,95296.0,0.19089827]
[1768347425634,0.09690441,95311.0,95277.0,0.27026277]
[1768347425834,0.17192951,95330.0,95282.0,0.0949355]
[1768347425835,0.09809447,95309.0,95282.0,0.0949355]
[1768347426136,0.09690441,95307.0,95284.0,0.19089827]
[1768347426633,0.09690441,95307.0,95280.0,0.09596277]
[1768347426936,0.09690441,95305.0,95281.0,0.5626]
[1768347427436,0.09809447,95312.0,95287.0,0.19089827]
[1768347427634,0.19499888,95310.0,95281.0,0.09596277]
[1768347427937,0.09690441,95309.0,95285.0,0.19089827]
[1768347428138,0.09690441,95309.0,95286.0,0.09596277]
[1768347429035,0.09690441,95309.0,95287.0,0.8978]
[1768347429240,0.09690441,95309.0,95287.0,0.99232]
[1768347429834,0.09690441,95309.0,95288.0,0.99232]
[1768347430033,0.09690441,95315.0,95288.0,0.99232]
[1768347430334,0.1460185,95322.0,95294.0,0.09596277]
[1768347430637,0.04911409,95322.0,95296.0,0.09596277]
[1768347430838,0.04911409,95322.0,95297.0,0.0949355]
[1768347431035,0.04911409,95322.0,95298.0,0.09596277]
[1768347431235,0.04911409,95322.0,95299.0,0.09452]
[1768347431539,0.04911409,95322.0,95299.0,0.28541827]
[1768347431733,0.04911409,95322.0,95300.0,0.09596277]
[1768347431927,0.04911409,95322.0,95301.0,0.19089827]
[1768347432132,0.04911409,95322.0,95303.0,0.0949355]
[1768347432333,0.04911409,95322.0,95299.0,0.19048277]
[1768347432633,0.04911409,95322.0,95300.0,0.09596277]
[1768347432837,0.04911409,95322.0,95301.0,0.94876]
[1768347433042,0.04911409,95322.0,95303.0,0.19089827]
[1768347433233,0.09809447,95328.0,95303.0,0.19089827]
[1768347433536,0.19499888,95331.0,95306.0,0.09596277]
[1768347433734,0.09690441,95322.0,95300.0,0.89784]
[1768347433934,0.09690441,95322.0,95301.0,0.09452]
[1768347434136,0.09690441,95321.0,95301.0,0.09452]
[1768347434338,0.09809447,95328.0,95301.0,0.28541827]
[1768347434530,0.19499888,95328.0,95301.0,0.28541827]
[1768347434731,0.09690441,95327.0,95301.0,0.28541827]
[1768347434934,0.09690441,95324.0,95301.0,0.19089827]
[1768347435242,0.09690441,95324.0,95302.0,0.09452]
[1768347435446,0.09690441,95319.0,95295.0,0.09596277]
[1768347435645,0.09690441,95318.0,95296.0,0.4092]
[1768347436434,0.09690441,95318.0,95296.0,0.31468]
[1768347436639,0.09690441,95318.0,95297.0,0.09452]
[1768347436843,0.09690441,95331.0,95305.0,0.19089827]
[1768347437141,0.09690441,95331.0,95307.0,0.1873636]
[1768347437336,0.09611127,95330.0,95307.0,0.1873636]
[1768347437536,0.09611127,95329.0,95308.0,0.09452]
[1768347438339,0.09611127,95328.0,95308.0,0.09452]
[1768347438540,0.09611127,95327.0,95308.0,0.09452]
[1768347438739,0.09611127,95326.0,95308.0,0.09452]
[1768347438940,0.10660527,95323.0,95308.0,0.09452]
[1768347439251,0.09611127,95323.0,95308.0,0.09452]
[1768347439548,0.010494,95322.0,95308.0,0.09452]
[1768347439749,0.010494,95322.0,95309.0,0.09452]
[1768347439953,0.010494,95322.0,95310.0,0.09452]
[1768347440247,0.10660527,95322.0,95310.0,0.09452]
[1768347440850,0.09611127,95322.0,95310.0,0.09452]
[1768347441853,0.10431474,95325.0,95301.0,0.09618338]
[1768347442041,0.10660527,95328.0,95303.0,0.09618338]
[1768347442350,0.10660527,95328.0,95304.0,0.19070338]
[1768347442543,0.010494,95324.0,95304.0,0.19070338]
[1768347442744,0.09611127,95328.0,95304.0,0.19070338]
[1768347442942,0.09611127,95328.0,95304.0,0.09618338]
[1768347443144,0.18993201,95328.0,95305.0,0.09452]
[1768347443347,0.09611127,95327.0,95305.0,0.09452]
[1768347443851,0.10660527,95327.0,95305.0,0.09452]
[1768347444049,0.09611127,95327.0,95306.0,0.09618338]
[1768347445252,0.09452,95346.0,95310.0,0.09618338]
[1768347445450,0.01353101,95348.0,95313.0,0.1873636]
[1768347445651,0.09611127,95350.0,95318.0,0.1873636]
[1768347445851,0.10980598,95350.0,95324.0,0.09618338]
[1768347446853,0.10980598,95350.0,95324.0,0.1873636]
[1768347447355,0.12029698,95350.0,95324.0,0.1873636]
[1768347447550,0.12029698,95350.0,95319.0,0.84796]
[1768347447551,0.10980598,95350.0,95326.0,0.09118022]
[1768347447749,0.01369471,95350.0,95328.0,0.09118022]
[1768347447949,0.00524367,95353.0,95331.0,0.09618338]
[1768347448151,0.00524367,95353.0,95332.0,0.09452]
[1768347448353,0.01573467,95353.0,95332.0,0.09452]
[1768347448558,0.03035633,95353.0,95332.0,0.09452]
[1768347449146,0.01986533,95353.0,95332.0,0.09452]
[1768347450056,0.01986533,95353.0,95332.0,0.19070338]
[1768347450363,0.01986533,95353.0,95335.0,0.09118022]
[1768347450570,0.00524367,95353.0,95337.0,0.09118022]
[1768347450768,0.00524367,95353.0,95339.0,0.09118022]
[1768347451061,0.01049,95367.0,95341.0,0.1873636]
[1768347451261,0.15455019,95375.0,95345.0,0.09618338]
[1768347451563,0.01573157,95373.0,95347.0,0.09618338]
[1768347451762,0.11078811,95369.0,95347.0,0.09618338]
[1768347451951,0.09611127,95389.0,95363.0,0.09622338]
[1768347452147,0.010487,95388.0,95364.0,0.2818436]
[1768347452349,0.09611127,95364.0,95343.0,0.09448]
[1768347452561,0.09611127,95363.0,95343.0,0.09448]
[1768347452961,0.25772564,95360.0,95336.0,0.09618338]
[1768347453162,0.09611127,95355.0,95335.0,0.09448]
[1768347453964,0.18993201,95362.0,95335.0,0.09448]
[1768347454158,0.20042201,95361.0,95335.0,0.09448]
[1768347454363,0.09611127,95357.0,95335.0,0.09448]
[1768347454572,0.010491,95353.0,95335.0,0.09448]
[1768347454865,0.10660227,95356.0,95336.0,0.09448]
[1768347455265,0.09413298,95355.0,95336.0,0.09448]
[1768347455459,0.09413298,95355.0,95328.0,0.1895553]
[1768347455655,0.09413298,95355.0,95329.0,0.09448]
[1768347455859,0.09413298,95355.0,95332.0,0.09827564]
[1768347456071,0.09413298,95355.0,95333.0,0.09448]
[1768347456672,0.09413298,95353.0,95327.0,0.09827564]
[1768347456971,0.09413298,95350.0,95328.0,0.09448]
[1768347457167,0.09413298,95348.0,95328.0,0.09448]
[1768347457961,0.09413298,95356.0,95332.0,0.1895553]
[1768347458162,0.09413298,95354.0,95332.0,0.09127966]
[1768347458561,0.09413298,95356.0,95333.0,0.1895553]
[1768347459973,0.09600222,95355.0,95333.0,0.09127966]
[1768347460273,0.09413298,95352.0,95331.0,0.09448]
[1768347460674,0.09600222,95351.0,95331.0,0.09448]
[1768347461272,0.09600222,95348.0,95322.0,0.09827564]
[1768347461471,0.09600222,95346.0,95320.0,0.09127966]
[1768347461666,0.09600222,95344.0,95321.0,0.09448]
[1768347462066,0.09413298,95343.0,95321.0,0.09448]
[1768347462366,0.09413298,95342.0,95321.0,0.09448]
[1768347462565,0.09413298,95341.0,95321.0,0.09448]
[1768347463278,0.09413298,95340.0,95321.0,0.09448]
[1768347464180,0.09413298,95340.0,95206.0,0.85457081]
[1768347464181,0.09413298,95334.0,95316.0,0.09448]
[1768347464479,0.09413298,95332.0,95315.0,0.09448]
[1768347465574,0.09600222,95338.0,95315.0,0.09448]
[1768347465768,0.1901352,95338.0,95315.0,0.09448]
[1768347465971,0.1901352,95327.0,95295.0,0.10058427]
[1768347466274,0.09413298,95320.0,95295.0,0.10058427]
[1768347466971,0.09600222,95318.0,95295.0,0.00230863]
[1768347467180,0.09413298,95315.0,95296.0,0.09448]
[1768347467381,0.1901352,95315.0,95296.0,0.09448]
[1768347467574,0.1901352,95315.0,95295.0,0.00230863]
[1768347468281,0.1901352,95314.0,95295.0,0.00230863]
[1768347468483,0.09413298,95311.0,95295.0,0.00230863]
[1768347469882,0.10377293,95311.0,95295.0,0.00230863]
[1768347470680,0.08888931,95311.0,95295.0,0.00230863]
[1768347474882,0.08888931,95311.0,95293.0,0.09972698]
[1768347474883,0.09413298,95309.0,95293.0,0.00524698]
[1768347475185,0.1901352,95309.0,95294.0,0.09448]
[1768347475786,0.1901352,95309.0,95286.0,0.09127966]
[1768347475973,0.1901352,95309.0,95287.0,0.09452]
[1768347476276,0.1901352,95314.0,95290.0,0.25772564]
[1768347476480,0.1901352,95314.0,95292.0,0.09827564]
[1768347476882,0.11092647,95318.0,95294.0,0.09827564]
[1768347477083,0.1901352,95318.0,95294.0,0.09827564]
[1768347477382,0.1901352,95317.0,95294.0,0.09827564]
[1768347478380,0.1901352,95309.0,95287.0,0.09452]
[1768347478574,0.010496,95306.0,95287.0,0.2840753]
[1768347478884,0.010496,95312.0,95293.0,0.1895553]
[1768347479087,0.01494053,95318.0,95296.0,0.09827564]
[1768347479277,0.1901352,95318.0,95296.0,0.09827564]
[1768347479478,0.1901352,95316.0,95295.0,0.09127966]
[1768347479676,0.010496,95313.0,95291.0,0.09827564]
[1768347479988,0.1901352,95304.0,95291.0,0.09452]
[1768347481179,0.09413298,95304.0,95291.0,0.09452]
[1768347481482,0.09600222,95305.0,95282.0,0.09827564]
[1768347481692,0.09600222,95301.0,95283.0,0.09452]
[1768347481980,0.09413298,95298.0,95283.0,0.09452]
[1768347482585,0.10462998,95298.0,95283.0,0.09452]
[1768347482787,0.09413298,95298.0,95283.0,0.09452]
[1768347483482,0.09413298,95303.0,95283.0,0.09452]
[1768347483688,0.1901352,95303.0,95283.0,0.09452]
[1768347483885,0.09452,95314.0,95283.0,0.09452]
[1768347483886,0.1901352,95302.0,95283.0,0.09452]
[1768347484278,0.1901352,95300.0,95279.0,0.00012255]
[1768347484483,0.2006332,95288.0,95279.0,0.00012255]
[1768347484681,0.010499,95285.0,95270.0,0.09452]
[1768347484889,0.1901352,95285.0,95270.0,0.09452]
[1768347485487,0.09413298,95285.0,95270.0,0.09452]
[1768347485676,8.883e-05,95284.0,95270.0,0.09452]
[1768347491892,8.883e-05,95284.0,95273.0,0.20145805]
[1768347492996,8.883e-05,95284.0,95273.0,0.10482418]
[1768347493997,0.10585805,95294.0,95293.0,1.5e-07]
[1768347494185,0.10585805,95294.0,95273.0,0.10482418]
[1768347494495,0.010498,95292.0,95273.0,0.10482418]
[1768347494991,0.14383095,95302.0,95273.0,0.10482418]
[1768347494992,0.19395658,95290.0,95273.0,0.00524808]
[1768347495384,0.17203178,95290.0,95273.0,0.10188195]
[1768347495697,7.247e-05,95291.0,95273.0,0.10188195]
[1768347497987,0.17203178,95290.0,95273.0,0.10188195]
[1768347498387,0.17203178,95290.0,95273.0,0.00524808]
[1768347498789,7.247e-05,95291.0,95275.0,0.09504313]
[1768347498988,0.17203178,95290.0,95274.0,0.09873771]
[1768347499482,0.17203178,95290.0,95276.0,0.09873771]
[1768347499689,7.247e-05,95291.0,95276.0,0.09873771]
[1768347499987,7.247e-05,95291.0,95273.0,0.00524808]